[Event "Titled Tuesday Blitz November 07 Early 2023"]
[White "Lesbekova, Assel"]
[Black "Lehtosaari, Mauri"]
[WhiteFideId "13713248"]
[BlackFideId "501999"]
[WhiteElo "2282"]
[BlackElo "2500"]
[Result "1-0"]
[Round "2"]
[TimeControl "180+1"]
[Date "2023.11.07"]
[WhiteClock "0:00:25"]
[BlackClock "0:00:08"]
[Board "196"]

1. e4 {[%clk 0:03:00]}  d5 {[%clk 0:02:58]} 2. exd5 {[%clk 0:03:00]}  Qxd5 {[%clk 0:02:59]} 3. Nf3 {[%clk 0:02:59]}  Bg4 {[%clk 0:02:58]} 4. Be2 {[%clk 0:02:59]}  Nc6 {[%clk 0:02:54]} 5. Nc3 {[%clk 0:02:59]}  Qd7 {[%clk 0:02:52]} 6. d3 {[%clk 0:02:55]}  e6 {[%clk 0:02:46]} 7. h3 {[%clk 0:02:52]}  Bxf3 {[%clk 0:02:43]} 8. Bxf3 {[%clk 0:02:49]}  Nf6 {[%clk 0:02:41]} 9. Bg5 {[%clk 0:02:44]}  Be7 {[%clk 0:02:41]} 10. Qd2 {[%clk 0:02:43]}  Nd4 {[%clk 0:02:27]} 11. Bd1 {[%clk 0:02:24]}  c5 {[%clk 0:02:14]} 12. Ne2 {[%clk 0:02:24]}  O-O {[%clk 0:02:12]} 13. Nxd4 {[%clk 0:02:23]}  cxd4 {[%clk 0:01:55]} 14. O-O {[%clk 0:02:18]}  Rac8 {[%clk 0:01:53]} 15. Bf3 {[%clk 0:02:18]}  b6 {[%clk 0:01:47]} 16. c3 {[%clk 0:02:07]}  dxc3 {[%clk 0:01:38]} 17. bxc3 {[%clk 0:02:08]}  Rfd8 {[%clk 0:01:33]} 18. Rfd1 {[%clk 0:02:00]}  h6 {[%clk 0:01:25]} 19. Bh4 {[%clk 0:01:54]}  Qa4 {[%clk 0:01:21]} 20. d4 {[%clk 0:01:44]}  e5 {[%clk 0:01:00]} 21. Qe3 {[%clk 0:01:30]}  Re8 {[%clk 0:00:19]} 22. dxe5 {[%clk 0:01:08]}  Qxh4 {[%clk 0:00:18]} 23. exf6 {[%clk 0:01:09]}  Bxf6 {[%clk 0:00:19]} 24. Qd3 {[%clk 0:01:03]}  Bxc3 {[%clk 0:00:17]} 25. Rac1 {[%clk 0:01:02]}  Be5 {[%clk 0:00:17]} 26. Qd7 {[%clk 0:00:59]}  Rcd8 {[%clk 0:00:13]} 27. Qb5 {[%clk 0:00:53]}  Bd4 {[%clk 0:00:11]} 28. Rd2 {[%clk 0:00:41]}  Bc5 {[%clk 0:00:10]} 29. Rcd1 {[%clk 0:00:39]}  Rf8 {[%clk 0:00:06]} 30. Rxd8 {[%clk 0:00:36]}  Rxd8 {[%clk 0:00:07]} 31. Rxd8+ {[%clk 0:00:32]}  Qxd8 {[%clk 0:00:08]} 32. Qe2 {[%clk 0:00:32]}  a5 {[%clk 0:00:08]} 33. Kh2 {[%clk 0:00:30]}  g6 {[%clk 0:00:08]} 34. g3 {[%clk 0:00:30]}  Qd6 {[%clk 0:00:08]} 35. Kg2 {[%clk 0:00:31]}  Kg7 {[%clk 0:00:09]} 36. Qb2+ {[%clk 0:00:30]}  Bd4 {[%clk 0:00:09]} 37. Qb3 {[%clk 0:00:30]}  Qc5 {[%clk 0:00:09]} 38. Qd5 {[%clk 0:00:28]}  Bxf2 {[%clk 0:00:08]} 39. Qxc5 {[%clk 0:00:26]}  bxc5 {[%clk 0:00:09]} 40. Kxf2 {[%clk 0:00:25]}  Kf6 {[%clk 0:00:09]} 41. Ke3 {[%clk 0:00:26]}  Ke5 {[%clk 0:00:10]} 42. Kd3 {[%clk 0:00:26]}  f5 {[%clk 0:00:09]} 43. Kc4 {[%clk 0:00:26]}  f4 {[%clk 0:00:06]} 44. gxf4+ {[%clk 0:00:25]}  Kxf4 {[%clk 0:00:07]} 45. Bc6 {[%clk 0:00:25]}  Kg3 {[%clk 0:00:06]} 46. Bd7 {[%clk 0:00:25]}  h5 {[%clk 0:00:06]} 47. Kxc5 {[%clk 0:00:26]}  g5 {[%clk 0:00:07]} 48. Kb5 {[%clk 0:00:26]}  g4 {[%clk 0:00:07]} 49. hxg4 {[%clk 0:00:26]}  hxg4 {[%clk 0:00:07]} 50. Kxa5 {[%clk 0:00:26]}  Kf4 {[%clk 0:00:07]} 51. Bxg4 {[%clk 0:00:26]}  Ke5 {[%clk 0:00:08]} 52. Kb6 {[%clk 0:00:25]}  Kd6 {[%clk 0:00:08]} 1-0


[Site "https://www.chess.com"]

[Event "Titled Tuesday Blitz November 07 Early 2023"]
[White "Ahn, Hongjin"]
[Black "Napoli, Nicolo"]
[WhiteFideId "13201492"]
[BlackFideId "813702"]
[WhiteElo "2499"]
[BlackElo "2282"]
[Result "0-1"]
[Round "2"]
[TimeControl "180+1"]
[Date "2023.11.07"]
[WhiteClock "0:00:00"]
[BlackClock "0:00:11"]
[Board "197"]

1. e4 {[%clk 0:03:00]}  c6 {[%clk 0:02:57]} 2. d4 {[%clk 0:02:59]}  d5 {[%clk 0:02:57]} 3. exd5 {[%clk 0:03:00]}  cxd5 {[%clk 0:02:57]} 4. Nf3 {[%clk 0:03:01]}  Nf6 {[%clk 0:02:57]} 5. Ne5 {[%clk 0:03:01]}  g6 {[%clk 0:02:54]} 6. Bd3 {[%clk 0:03:00]}  Bg7 {[%clk 0:02:54]} 7. O-O {[%clk 0:03:01]}  O-O {[%clk 0:02:54]} 8. c3 {[%clk 0:03:01]}  Nc6 {[%clk 0:02:54]} 9. Nxc6 {[%clk 0:03:01]}  bxc6 {[%clk 0:02:55]} 10. Nd2 {[%clk 0:03:02]}  c5 {[%clk 0:02:52]} 11. dxc5 {[%clk 0:03:01]}  e5 {[%clk 0:02:51]} 12. Nb3 {[%clk 0:03:00]}  a5 {[%clk 0:02:49]} 13. a4 {[%clk 0:02:58]}  Qc7 {[%clk 0:02:37]} 14. Bb5 {[%clk 0:02:51]}  Be6 {[%clk 0:02:19]} 15. c6 {[%clk 0:02:46]}  Rfd8 {[%clk 0:02:11]} 16. Nc5 {[%clk 0:02:40]}  Bc8 {[%clk 0:02:02]} 17. Re1 {[%clk 0:02:30]}  Bf8 {[%clk 0:01:57]} 18. Bg5 {[%clk 0:02:25]}  Be7 {[%clk 0:01:00]} 19. Nd7 {[%clk 0:02:17]}  Bxd7 {[%clk 0:00:23]} 20. cxd7 {[%clk 0:02:13]}  Kg7 {[%clk 0:00:24]} 21. Bxf6+ {[%clk 0:02:07]}  Bxf6 {[%clk 0:00:24]} 22. Qxd5 {[%clk 0:02:07]}  Rab8 {[%clk 0:00:22]} 23. Rad1 {[%clk 0:02:05]}  Rb6 {[%clk 0:00:22]} 24. Bc4 {[%clk 0:01:58]}  Re6 {[%clk 0:00:21]} 25. Kh1 {[%clk 0:01:43]}  Re7 {[%clk 0:00:21]} 26. Bb5 {[%clk 0:01:43]}  h5 {[%clk 0:00:20]} 27. Re4 {[%clk 0:01:37]}  h4 {[%clk 0:00:17]} 28. Rc4 {[%clk 0:01:35]}  Qa7 {[%clk 0:00:17]} 29. Qf3 {[%clk 0:01:33]}  e4 {[%clk 0:00:15]} 30. Qe2 {[%clk 0:01:32]}  h3 {[%clk 0:00:16]} 31. g3 {[%clk 0:01:31]}  e3 {[%clk 0:00:16]} 32. f4 {[%clk 0:01:29]}  Qb7+ {[%clk 0:00:16]} 33. Bc6 {[%clk 0:01:27]}  Qb3 {[%clk 0:00:17]} 34. Bb5 {[%clk 0:01:20]}  Re6 {[%clk 0:00:15]} 35. Rc8 {[%clk 0:01:16]}  Rb6 {[%clk 0:00:12]} 36. Rxd8 {[%clk 0:01:15]}  Bxd8 {[%clk 0:00:13]} 37. Rd4 {[%clk 0:01:09]}  Bf6 {[%clk 0:00:12]} 38. d8=Q {[%clk 0:01:09]}  Bxd8 {[%clk 0:00:12]} 39. Rxd8 {[%clk 0:01:10]}  Qe6 {[%clk 0:00:08]} 40. Rd4 {[%clk 0:00:58]}  Rd6 {[%clk 0:00:07]} 41. Kg1 {[%clk 0:00:51]}  Rxd4 {[%clk 0:00:05]} 42. cxd4 {[%clk 0:00:52]}  Qe4 {[%clk 0:00:05]} 43. Bd3 {[%clk 0:00:33]}  Qxd4 {[%clk 0:00:05]} 44. Kf1 {[%clk 0:00:33]}  Qxa4 {[%clk 0:00:05]} 45. Qxe3 {[%clk 0:00:32]}  Qd1+ {[%clk 0:00:04]} 46. Kf2 {[%clk 0:00:32]}  Qh1 {[%clk 0:00:03]} 47. Qe5+ {[%clk 0:00:31]}  Kh7 {[%clk 0:00:03]} 48. Qg5 {[%clk 0:00:28]}  Qxh2+ {[%clk 0:00:03]} 49. Ke3 {[%clk 0:00:28]}  Qg2 {[%clk 0:00:04]} 50. Be4 {[%clk 0:00:25]}  Qg1+ {[%clk 0:00:04]} 51. Kd3 {[%clk 0:00:23]}  h2 {[%clk 0:00:05]} 52. Qh4+ {[%clk 0:00:23]}  Kg7 {[%clk 0:00:05]} 53. f5 {[%clk 0:00:21]}  Qb1+ {[%clk 0:00:05]} 54. Ke3 {[%clk 0:00:19]}  Qc1+ {[%clk 0:00:05]} 55. Kf2 {[%clk 0:00:16]}  Qg1+ {[%clk 0:00:05]} 56. Ke2 {[%clk 0:00:16]}  gxf5 {[%clk 0:00:05]} 57. Qg5+ {[%clk 0:00:14]}  Kf8 {[%clk 0:00:06]} 58. Qd8+ {[%clk 0:00:13]}  Kg7 {[%clk 0:00:06]} 59. Qg5+ {[%clk 0:00:13]}  Kf8 {[%clk 0:00:07]} 60. Qh6+ {[%clk 0:00:13]}  Ke7 {[%clk 0:00:07]} 61. Bf3 {[%clk 0:00:12]}  Qxg3 {[%clk 0:00:06]} 62. Qe3+ {[%clk 0:00:12]}  Kf6 {[%clk 0:00:05]} 63. Qc3+ {[%clk 0:00:10]}  Kg5 {[%clk 0:00:04]} 64. Qg7+ {[%clk 0:00:10]}  Kf4 {[%clk 0:00:04]} 65. Qh6+ {[%clk 0:00:10]}  Ke5 {[%clk 0:00:03]} 66. Qh8+ {[%clk 0:00:09]}  Kd6 {[%clk 0:00:03]} 67. Qd4+ {[%clk 0:00:09]}  Ke7 {[%clk 0:00:04]} 68. Qc5+ {[%clk 0:00:08]}  Qd6 {[%clk 0:00:05]} 69. Qa7+ {[%clk 0:00:05]}  Kf6 {[%clk 0:00:05]} 70. Qxa5 {[%clk 0:00:05]}  Qe5+ {[%clk 0:00:06]} 71. Qxe5+ {[%clk 0:00:05]}  Kxe5 {[%clk 0:00:06]} 72. b4 {[%clk 0:00:06]}  Kd4 {[%clk 0:00:07]} 73. b5 {[%clk 0:00:06]}  Kc5 {[%clk 0:00:07]} 74. b6 {[%clk 0:00:07]}  Kxb6 {[%clk 0:00:07]} 75. Kf2 {[%clk 0:00:07]}  Kc5 {[%clk 0:00:08]} 76. Kg2 {[%clk 0:00:08]}  Kd4 {[%clk 0:00:08]} 77. Kxh2 {[%clk 0:00:09]}  Ke3 {[%clk 0:00:09]} 78. Kg3 {[%clk 0:00:09]}  f4+ {[%clk 0:00:10]} 79. Kg4 {[%clk 0:00:10]}  f5+ {[%clk 0:00:11]} 80. Kh3 {[%clk 0:00:02]}  Kxf3 {[%clk 0:00:11]} 81. Kh2 {[%clk 0:00:00]}  Ke2 {[%clk 0:00:11]} 0-1


[Site "https://www.chess.com"]

[Event "Titled Tuesday Blitz November 07 Early 2023"]
[White "ChainedDowntohell"]
[Black "De Souza, Cristiano Gomes"]
[BlackFideId "2151758"]
[WhiteElo "2498"]
[BlackElo "2275"]
[Result "1-0"]
[Round "2"]
[TimeControl "180+1"]
[Date "2023.11.07"]
[WhiteClock "0:00:58"]
[BlackClock "0:00:12"]
[Board "198"]

1. d4 {[%clk 0:02:59]}  Nf6 {[%clk 0:02:23]} 2. c4 {[%clk 0:02:55]}  g6 {[%clk 0:02:20]} 3. Nc3 {[%clk 0:02:53]}  Bg7 {[%clk 0:02:20]} 4. e4 {[%clk 0:02:53]}  d6 {[%clk 0:02:21]} 5. Be2 {[%clk 0:02:52]}  O-O {[%clk 0:02:21]} 6. Be3 {[%clk 0:02:52]}  Na6 {[%clk 0:02:17]} 7. h4 {[%clk 0:02:47]}  e5 {[%clk 0:02:17]} 8. d5 {[%clk 0:02:46]}  Nc5 {[%clk 0:02:17]} 9. Qc2 {[%clk 0:02:42]}  a5 {[%clk 0:02:17]} 10. h5 {[%clk 0:02:40]}  Nfd7 {[%clk 0:02:05]} 11. g4 {[%clk 0:02:35]}  a4 {[%clk 0:02:02]} 12. Nh3 {[%clk 0:02:14]}  Qe7 {[%clk 0:01:58]} 13. O-O-O {[%clk 0:02:01]}  Rd8 {[%clk 0:01:37]} 14. Rdg1 {[%clk 0:01:51]}  b6 {[%clk 0:01:27]} 15. f3 {[%clk 0:01:41]}  f6 {[%clk 0:01:13]} 16. g5 {[%clk 0:01:35]}  f5 {[%clk 0:01:07]} 17. hxg6 {[%clk 0:01:31]}  hxg6 {[%clk 0:01:06]} 18. exf5 {[%clk 0:01:30]}  gxf5 {[%clk 0:01:06]} 19. Qxf5 {[%clk 0:01:13]}  Nf8 {[%clk 0:01:01]} 20. Qc2 {[%clk 0:01:11]}  e4 {[%clk 0:00:32]} 21. Nxe4 {[%clk 0:01:04]}  Bf5 {[%clk 0:00:26]} 22. Nf6+ {[%clk 0:00:58]}  Qxf6 {[%clk 0:00:25]} 23. gxf6 {[%clk 0:00:58]}  Bxc2 {[%clk 0:00:12]} 24. Rxg7+ {[%clk 0:00:58]} 1-0


[Site "https://www.chess.com"]

[Event "Titled Tuesday Blitz November 07 Early 2023"]
[White "Smietanska, Wiktoria"]
[Black "Rama, Tejas"]
[WhiteFideId "21869359"]
[BlackFideId "30907381"]
[WhiteElo "2274"]
[BlackElo "2498"]
[Result "0-1"]
[Round "2"]
[TimeControl "180+1"]
[Date "2023.11.07"]
[WhiteClock "0:00:01"]
[BlackClock "0:00:10"]
[Board "199"]

1. c4 {[%clk 0:02:56]}  e6 {[%clk 0:02:59]} 2. Nc3 {[%clk 0:02:55]}  d5 {[%clk 0:02:59]} 3. cxd5 {[%clk 0:02:53]}  exd5 {[%clk 0:02:58]} 4. d4 {[%clk 0:02:53]}  c6 {[%clk 0:02:35]} 5. Nf3 {[%clk 0:02:52]}  Nf6 {[%clk 0:02:34]} 6. Bg5 {[%clk 0:02:51]}  Bd6 {[%clk 0:02:33]} 7. e3 {[%clk 0:02:42]}  h6 {[%clk 0:02:32]} 8. Bh4 {[%clk 0:02:41]}  Bf5 {[%clk 0:02:05]} 9. Ne5 {[%clk 0:02:26]}  O-O {[%clk 0:01:38]} 10. Qf3 {[%clk 0:02:17]}  Be6 {[%clk 0:01:18]} 11. Bxf6 {[%clk 0:02:06]}  Qxf6 {[%clk 0:01:19]} 12. Qxf6 {[%clk 0:02:03]}  gxf6 {[%clk 0:01:20]} 13. Nd3 {[%clk 0:02:00]}  Nd7 {[%clk 0:01:19]} 14. Be2 {[%clk 0:01:59]}  b5 {[%clk 0:01:13]} 15. O-O {[%clk 0:01:55]}  a5 {[%clk 0:01:13]} 16. Rac1 {[%clk 0:01:50]}  a4 {[%clk 0:01:08]} 17. Nb1 {[%clk 0:01:38]}  Rfc8 {[%clk 0:01:06]} 18. Nd2 {[%clk 0:01:38]}  Bf5 {[%clk 0:00:58]} 19. g4 {[%clk 0:01:34]}  Bxd3 {[%clk 0:00:50]} 20. Bxd3 {[%clk 0:01:34]}  Nb6 {[%clk 0:00:46]} 21. Bf5 {[%clk 0:01:33]}  Rc7 {[%clk 0:00:46]} 22. Rc2 {[%clk 0:01:21]}  Nc4 {[%clk 0:00:34]} 23. Rfc1 {[%clk 0:01:15]}  Bb4 {[%clk 0:00:26]} 24. Nxc4 {[%clk 0:01:07]}  bxc4 {[%clk 0:00:27]} 25. Kg2 {[%clk 0:00:57]}  Rb8 {[%clk 0:00:27]} 26. Kg3 {[%clk 0:00:51]}  Rcb7 {[%clk 0:00:25]} 27. f4 {[%clk 0:00:41]}  Bd6 {[%clk 0:00:17]} 28. Rb1 {[%clk 0:00:39]}  a3 {[%clk 0:00:15]} 29. b3 {[%clk 0:00:18]}  cxb3 {[%clk 0:00:15]} 30. Rxc6 {[%clk 0:00:14]}  bxa2 {[%clk 0:00:12]} 31. Ra1 {[%clk 0:00:14]}  Bf8 {[%clk 0:00:09]} 32. Rxa2 {[%clk 0:00:14]}  Rb2 {[%clk 0:00:10]} 33. Ra1 {[%clk 0:00:13]}  Re2 {[%clk 0:00:08]} 34. Rc3 {[%clk 0:00:09]}  Rbb2 {[%clk 0:00:09]} 35. h3 {[%clk 0:00:06]}  Rg2+ {[%clk 0:00:09]} 36. Kh4 {[%clk 0:00:06]}  a2 {[%clk 0:00:06]} 37. Ra3 {[%clk 0:00:06]}  Bxa3 {[%clk 0:00:05]} 38. Kh5 {[%clk 0:00:05]}  Bb4 {[%clk 0:00:05]} 39. h4 {[%clk 0:00:05]}  Rh2 {[%clk 0:00:06]} 40. g5 {[%clk 0:00:05]}  hxg5 {[%clk 0:00:05]} 41. fxg5 {[%clk 0:00:05]}  fxg5 {[%clk 0:00:06]} 42. Kxg5 {[%clk 0:00:05]}  Rbg2+ {[%clk 0:00:07]} 43. Kf6 {[%clk 0:00:05]}  Bc3 {[%clk 0:00:08]} 44. Rc1 {[%clk 0:00:04]}  a1=Q {[%clk 0:00:08]} 45. Rxa1 {[%clk 0:00:02]}  Bxa1 {[%clk 0:00:08]} 46. Ke5 {[%clk 0:00:02]}  Rf2 {[%clk 0:00:09]} 47. Kxd5 {[%clk 0:00:02]}  Rxf5+ {[%clk 0:00:09]} 48. Ke4 {[%clk 0:00:01]}  Rh5 {[%clk 0:00:10]} 0-1


[Site "https://www.chess.com"]

[Event "Titled Tuesday Blitz November 07 Early 2023"]
[White "Dinu, Dumitru-Daniel"]
[Black "Belanoff, Ted"]
[WhiteFideId "1208403"]
[BlackFideId "2070588"]
[WhiteElo "2497"]
[BlackElo "2273"]
[Result "0-1"]
[Round "2"]
[TimeControl "180+1"]
[Date "2023.11.07"]
[WhiteClock "0:00:26"]
[BlackClock "0:00:48"]
[Board "200"]

1. e4 {[%clk 0:03:00]}  d5 {[%clk 0:02:58]} 2. exd5 {[%clk 0:03:00]}  Qxd5 {[%clk 0:02:59]} 3. Nf3 {[%clk 0:02:59]}  Bg4 {[%clk 0:02:58]} 4. Be2 {[%clk 0:02:59]}  c6 {[%clk 0:02:58]} 5. Nc3 {[%clk 0:02:58]}  Qd6 {[%clk 0:02:57]} 6. h3 {[%clk 0:02:58]}  Bh5 {[%clk 0:02:56]} 7. d4 {[%clk 0:02:57]}  Nd7 {[%clk 0:02:54]} 8. g4 {[%clk 0:02:57]}  Bg6 {[%clk 0:02:54]} 9. Be3 {[%clk 0:02:54]}  Ngf6 {[%clk 0:02:53]} 10. Qd2 {[%clk 0:02:53]}  e6 {[%clk 0:02:53]} 11. O-O-O {[%clk 0:02:48]}  Be7 {[%clk 0:02:52]} 12. h4 {[%clk 0:02:35]}  Nxg4 {[%clk 0:02:50]} 13. h5 {[%clk 0:02:36]}  Bf5 {[%clk 0:02:40]} 14. Nh4 {[%clk 0:02:30]}  Bxh4 {[%clk 0:02:24]} 15. Rxh4 {[%clk 0:02:30]}  Nxe3 {[%clk 0:02:23]} 16. Qxe3 {[%clk 0:02:29]}  Nf6 {[%clk 0:02:16]} 17. d5 {[%clk 0:02:26]}  Nxd5 {[%clk 0:02:10]} 18. Nxd5 {[%clk 0:02:18]}  cxd5 {[%clk 0:02:10]} 19. Bb5+ {[%clk 0:02:18]}  Kf8 {[%clk 0:02:10]} 20. h6 {[%clk 0:02:19]}  g6 {[%clk 0:02:01]} 21. Qd4 {[%clk 0:01:46]}  Rg8 {[%clk 0:02:01]} 22. c3 {[%clk 0:01:20]}  a6 {[%clk 0:01:59]} 23. Be2 {[%clk 0:01:19]}  b5 {[%clk 0:01:52]} 24. Bf3 {[%clk 0:01:14]}  Rc8 {[%clk 0:01:51]} 25. a3 {[%clk 0:01:08]}  g5 {[%clk 0:01:49]} 26. Rh5 {[%clk 0:01:08]}  Qf4+ {[%clk 0:01:35]} 27. Qxf4 {[%clk 0:01:06]}  gxf4 {[%clk 0:01:36]} 28. Rd4 {[%clk 0:01:02]}  Rg1+ {[%clk 0:01:31]} 29. Kd2 {[%clk 0:00:57]}  Rb1 {[%clk 0:01:30]} 30. Rb4 {[%clk 0:00:56]}  Rc4 {[%clk 0:01:26]} 31. Rxc4 {[%clk 0:00:50]}  dxc4 {[%clk 0:01:15]} 32. Rh4 {[%clk 0:00:46]}  Rxb2+ {[%clk 0:01:14]} 33. Ke1 {[%clk 0:00:45]}  Rb3 {[%clk 0:01:14]} 34. Rxf4 {[%clk 0:00:45]}  Rxc3 {[%clk 0:01:11]} 35. Bb7 {[%clk 0:00:45]}  Rxa3 {[%clk 0:01:11]} 36. Rd4 {[%clk 0:00:44]}  Ke7 {[%clk 0:01:10]} 37. Bc6 {[%clk 0:00:44]}  Rd3 {[%clk 0:01:09]} 38. Rf4 {[%clk 0:00:41]}  Kf6 {[%clk 0:01:03]} 39. Bb7 {[%clk 0:00:38]}  Ra3 {[%clk 0:01:02]} 40. Rd4 {[%clk 0:00:37]}  Bd3 {[%clk 0:00:58]} 41. Rf4+ {[%clk 0:00:33]}  Kg6 {[%clk 0:00:58]} 42. Bc6 {[%clk 0:00:32]}  f5 {[%clk 0:00:55]} 43. Be8+ {[%clk 0:00:32]}  Kxh6 {[%clk 0:00:54]} 44. Bd7 {[%clk 0:00:30]}  Kg5 {[%clk 0:00:54]} 45. Rd4 {[%clk 0:00:30]}  e5 {[%clk 0:00:50]} 46. f4+ {[%clk 0:00:30]}  exf4 {[%clk 0:00:49]} 47. Rd6 {[%clk 0:00:30]}  f3 {[%clk 0:00:45]} 48. Bc6 {[%clk 0:00:25]}  Kf4 {[%clk 0:00:45]} 49. Rh6 {[%clk 0:00:19]}  Ke3 {[%clk 0:00:45]} 50. Re6+ {[%clk 0:00:19]}  Be4 {[%clk 0:00:44]} 51. Bxe4 {[%clk 0:00:18]}  fxe4 {[%clk 0:00:45]} 52. Kd1 {[%clk 0:00:18]}  f2 {[%clk 0:00:44]} 53. Rf6 {[%clk 0:00:19]}  f1=Q+ {[%clk 0:00:44]} 54. Rxf1 {[%clk 0:00:18]}  Ra1+ {[%clk 0:00:45]} 55. Kc2 {[%clk 0:00:19]}  Rxf1 {[%clk 0:00:45]} 56. Kc3 {[%clk 0:00:20]}  Rd1 {[%clk 0:00:45]} 57. Kb4 {[%clk 0:00:20]}  c3 {[%clk 0:00:45]} 58. Kxc3 {[%clk 0:00:21]}  Rd3+ {[%clk 0:00:44]} 59. Kb4 {[%clk 0:00:22]}  Kd2 {[%clk 0:00:45]} 60. Ka5 {[%clk 0:00:22]}  b4 {[%clk 0:00:45]} 61. Kxb4 {[%clk 0:00:23]}  a5+ {[%clk 0:00:45]} 62. Kxa5 {[%clk 0:00:23]}  Rc3 {[%clk 0:00:46]} 63. Kb4 {[%clk 0:00:24]}  e3 {[%clk 0:00:46]} 64. Kb5 {[%clk 0:00:24]}  e2 {[%clk 0:00:46]} 65. Kb4 {[%clk 0:00:25]}  e1=Q {[%clk 0:00:47]} 66. Ka4 {[%clk 0:00:26]}  Qa1+ {[%clk 0:00:47]} 67. Kb4 {[%clk 0:00:26]}  Qb2+ {[%clk 0:00:47]} 68. Ka5 {[%clk 0:00:26]}  Ra3# {[%clk 0:00:48]} 0-1


[Site "https://www.chess.com"]

[Event "Titled Tuesday Blitz November 07 Early 2023"]
[White "Nissinen, Niilo Man"]
[Black "Minko, Dmitry"]
[WhiteFideId "30950767"]
[BlackFideId "24188468"]
[WhiteElo "2264"]
[BlackElo "2495"]
[Result "0-1"]
[Round "2"]
[TimeControl "180+1"]
[Date "2023.11.07"]
[WhiteClock "0:00:01"]
[BlackClock "0:00:58"]
[Board "201"]

1. e4 {[%clk 0:03:00]}  e5 {[%clk 0:02:58]} 2. Nf3 {[%clk 0:02:59]}  Nc6 {[%clk 0:02:58]} 3. Bc4 {[%clk 0:02:58]}  Nf6 {[%clk 0:02:59]} 4. d3 {[%clk 0:02:58]}  h6 {[%clk 0:02:59]} 5. O-O {[%clk 0:02:57]}  g6 {[%clk 0:02:59]} 6. c3 {[%clk 0:02:55]}  Bg7 {[%clk 0:02:59]} 7. Re1 {[%clk 0:02:55]}  O-O {[%clk 0:02:59]} 8. Nbd2 {[%clk 0:02:46]}  d5 {[%clk 0:02:43]} 9. exd5 {[%clk 0:02:45]}  Nxd5 {[%clk 0:02:44]} 10. a4 {[%clk 0:02:43]}  a5 {[%clk 0:02:34]} 11. Nf1 {[%clk 0:02:32]}  Be6 {[%clk 0:02:27]} 12. Bb5 {[%clk 0:02:28]}  Qd6 {[%clk 0:02:16]} 13. Ng3 {[%clk 0:02:29]}  f5 {[%clk 0:02:14]} 14. Qe2 {[%clk 0:02:21]}  Bf7 {[%clk 0:02:00]} 15. h4 {[%clk 0:01:47]}  Nf4 {[%clk 0:01:44]} 16. Qc2 {[%clk 0:01:46]}  Rad8 {[%clk 0:01:39]} 17. Bxf4 {[%clk 0:01:39]}  exf4 {[%clk 0:01:40]} 18. Ne2 {[%clk 0:01:39]}  Bd5 {[%clk 0:01:34]} 19. Nd2 {[%clk 0:00:34]}  f3 {[%clk 0:01:20]} 20. gxf3 {[%clk 0:00:10]}  Qf6 {[%clk 0:01:13]} 21. Bxc6 {[%clk 0:00:10]}  Bxc6 {[%clk 0:01:05]} 22. d4 {[%clk 0:00:06]}  Qxh4 {[%clk 0:01:04]} 23. Nf1 {[%clk 0:00:06]}  Bxf3 {[%clk 0:01:02]} 24. Neg3 {[%clk 0:00:03]}  Qh3 {[%clk 0:00:58]} 25. Ne3 {[%clk 0:00:01]}  f4 {[%clk 0:00:58]} 0-1


[Site "https://www.chess.com"]

[Event "Titled Tuesday Blitz November 07 Early 2023"]
[White "Lopez Martinez, Josep Manuel"]
[Black "Kuchava, Ana"]
[WhiteFideId "2212943"]
[BlackFideId "13605348"]
[WhiteElo "2490"]
[BlackElo "2260"]
[Result "1-0"]
[Round "2"]
[TimeControl "180+1"]
[Date "2023.11.07"]
[WhiteClock "0:01:06"]
[BlackClock "0:00:00"]
[Board "204"]

1. e4 {[%clk 0:02:58]}  c5 {[%clk 0:02:59]} 2. Nf3 {[%clk 0:02:57]}  d6 {[%clk 0:02:58]} 3. d4 {[%clk 0:02:56]}  cxd4 {[%clk 0:02:58]} 4. Nxd4 {[%clk 0:02:56]}  Nf6 {[%clk 0:02:58]} 5. Nc3 {[%clk 0:02:54]}  Nc6 {[%clk 0:02:54]} 6. Bg5 {[%clk 0:02:53]}  e6 {[%clk 0:02:49]} 7. Bb5 {[%clk 0:02:44]}  Bd7 {[%clk 0:02:35]} 8. Qd3 {[%clk 0:02:12]}  a6 {[%clk 0:02:30]} 9. Bxc6 {[%clk 0:02:09]}  bxc6 {[%clk 0:02:31]} 10. O-O-O {[%clk 0:02:08]}  e5 {[%clk 0:02:25]} 11. Nb3 {[%clk 0:01:57]}  Be7 {[%clk 0:02:17]} 12. f4 {[%clk 0:01:52]}  exf4 {[%clk 0:02:16]} 13. Bxf4 {[%clk 0:01:51]}  Bg4 {[%clk 0:02:15]} 14. Rd2 {[%clk 0:01:49]}  O-O {[%clk 0:01:51]} 15. Bxd6 {[%clk 0:01:48]}  Bxd6 {[%clk 0:01:48]} 16. Qxd6 {[%clk 0:01:48]}  Qb6 {[%clk 0:01:45]} 17. e5 {[%clk 0:01:34]}  Rad8 {[%clk 0:01:28]} 18. Qc5 {[%clk 0:01:32]}  Qxc5 {[%clk 0:01:21]} 19. Nxc5 {[%clk 0:01:30]}  Nd5 {[%clk 0:01:20]} 20. N3e4 {[%clk 0:01:22]}  a5 {[%clk 0:01:06]} 21. h3 {[%clk 0:01:20]}  Bf5 {[%clk 0:01:00]} 22. Nd6 {[%clk 0:01:19]}  Bg6 {[%clk 0:00:59]} 23. a3 {[%clk 0:01:17]}  Ne3 {[%clk 0:00:21]} 24. Re1 {[%clk 0:01:15]}  Nf5 {[%clk 0:00:19]} 25. g4 {[%clk 0:01:11]}  Ne7 {[%clk 0:00:12]} 26. e6 {[%clk 0:01:07]}  f6 {[%clk 0:00:00]} 27. Nd7 {[%clk 0:01:06]} 1-0


[Site "https://www.chess.com"]

[Event "Titled Tuesday Blitz November 07 Early 2023"]
[White "Reprintsev, Alexander"]
[Black "Bolivar Losada, Jeison"]
[WhiteFideId "14100541"]
[BlackFideId "4404793"]
[WhiteElo "2487"]
[BlackElo "2257"]
[Result "1-0"]
[Round "2"]
[TimeControl "180+1"]
[Date "2023.11.07"]
[WhiteClock "0:01:32"]
[BlackClock "0:00:00"]
[Board "206"]

1. e4 {[%clk 0:02:58]}  c5 {[%clk 0:02:59]} 2. b3 {[%clk 0:02:56]}  Nf6 {[%clk 0:02:58]} 3. e5 {[%clk 0:02:56]}  Nd5 {[%clk 0:02:57]} 4. Nc3 {[%clk 0:02:56]}  Nxc3 {[%clk 0:02:48]} 5. dxc3 {[%clk 0:02:54]}  Nc6 {[%clk 0:02:48]} 6. Bf4 {[%clk 0:02:42]}  g6 {[%clk 0:02:47]} 7. Nf3 {[%clk 0:02:32]}  Bg7 {[%clk 0:02:47]} 8. Bc4 {[%clk 0:02:32]}  O-O {[%clk 0:02:46]} 9. O-O {[%clk 0:02:31]}  b6 {[%clk 0:02:21]} 10. Qd2 {[%clk 0:02:29]}  Bb7 {[%clk 0:02:19]} 11. Rad1 {[%clk 0:02:29]}  Na5 {[%clk 0:02:14]} 12. Qxd7 {[%clk 0:02:25]}  Qxd7 {[%clk 0:02:07]} 13. Rxd7 {[%clk 0:02:26]}  Bxf3 {[%clk 0:02:02]} 14. gxf3 {[%clk 0:02:26]}  Nxc4 {[%clk 0:02:01]} 15. bxc4 {[%clk 0:02:27]}  e6 {[%clk 0:01:41]} 16. Bg3 {[%clk 0:02:19]}  Rfd8 {[%clk 0:01:20]} 17. Rfd1 {[%clk 0:02:18]}  Rxd7 {[%clk 0:01:04]} 18. Rxd7 {[%clk 0:02:19]}  Kf8 {[%clk 0:01:04]} 19. f4 {[%clk 0:02:19]}  Ke8 {[%clk 0:01:03]} 20. Rb7 {[%clk 0:02:19]}  g5 {[%clk 0:00:20]} 21. fxg5 {[%clk 0:02:18]}  Rd8 {[%clk 0:00:19]} 22. Rxa7 {[%clk 0:02:16]}  Rd2 {[%clk 0:00:17]} 23. f4 {[%clk 0:01:52]}  Rxc2 {[%clk 0:00:17]} 24. Be1 {[%clk 0:01:52]}  h6 {[%clk 0:00:15]} 25. h4 {[%clk 0:01:52]}  hxg5 {[%clk 0:00:15]} 26. hxg5 {[%clk 0:01:52]}  Bf8 {[%clk 0:00:04]} 27. Kf1 {[%clk 0:01:50]}  Be7 {[%clk 0:00:04]} 28. a4 {[%clk 0:01:43]}  Ra2 {[%clk 0:00:00]} 29. Bf2 {[%clk 0:01:32]} 1-0


[Site "https://www.chess.com"]